Workbook

Sheet Computations Base
A1: Runway Saturation Capacity Estimation
A2: Using the Analyical Model for Runway Capacity
A4: Programmer: A. Trani (August 2019)
A5: Amendments: | B5: 1
A8: Technical Parameters (inputs) | E8: Parameter | F8: Values
A9: Dep-Arrival Separation (nm) | E9: d | F9: 2
A10: Common Approach Length (nm) | E10: g | F10: 12
A11: Standard deviation of Position Delivery Error (s) | E11: s | F11: 20
A12: Probability of Violation | E12: Pv | F12: 5 | H12: Clear to roll
A13: Cumulative Normal at Pv | E13: qv | F13: =qv_computation(F12) -> 1.65 | H13: 10
A14: Buffer for departure-departure (seconds) | F14: 10
B15: F | C15: E | D15: B
A16: ROT (s) | B16: 51 | C16: 54 | D16: 65 | E16: 70 | F16: 70 | H16: =B16*B17/100+C16*C17/100+D16*D17/100+E16*E17/100+F16*F17/100 -> 52.42 | I16: E(ROT)
A17: Percent Mix (%) | B17: 82 | C17: 10 | D17: 8 | E17: 0 | F17: 0 | H17: =B17+C17+D17+E17+F17 -> 100 | I17: Total %
A18: Vapproach (knots) | B18: 132 | C18: 137 | D18: 151 | E18: 150 | F18: 150
A20: Minimum Separation Matrix (nm) | D20: Arrivals-Arrivals
C21: Trailing Aircraft (Header Columns)
A22: Lead (column 1) | B22: F | C22: E | D22: B
A23: =B22 -> F | B23: 3 | C23: 3 | D23: 3
A24: =C22 -> E | B24: 3 | C24: 3 | D24: 3
A25: =D22 -> B | B25: 5 | C25: 5 | D25: 3
A29: Error Free Separation Matrix
C30: Trailing Aircraft (Header Columns)
A31: Lead (column 1) | B31: =B22 -> F | C31: =C22 -> E | D31: B | H31: Expected Value
A32: =A23 -> F | B32: =B23/B$18*3600 -> 81.81818182 | C32: =C23/C$18*3600 -> 78.83211679 | D32: =D23/D$18*3600 -> 71.52317881 | H32: E(Tij)
A33: =A24 -> E | B33: =(B24/B$18+$F$10*(1/B$18-1/C$18))*3600 -> 93.76244194 | C33: =C24/C$18*3600 -> 78.83211679 | D33: =D24/D$18*3600 -> 71.52317881 | H33: =B32*B41+C32*C41+D32*D41+E32*E41+B33*B42+C33*C42+D33*D42+E33*E42+B34*B43+C34*C43+D34*D43+E34*E43+B35*B44+C35*C44+D35*D44+E35*E44+F32*F41+F33*F42+F34*F43+F35*F44+B36*B45+C36*C45+D36*D45+E36*E45+F36*F45 -> 88.60931898
A34: B | B34: =(B25/B$18+$F$10*(1/B$18-1/D$18))*3600 -> 177.5436484 | C34: =(C25/C$18+$F$10*(1/C$18-1/D$18))*3600 -> 160.6226132 | D34: =D25/D$18*3600 -> 71.52317881
A38: Pij Matrix
C39: Trailing Aircraft (Header Columns)
A40: Lead (column 1) | B40: =B31 -> F | C40: =C31 -> E | D40: B | H40: Sum of Pij
A41: =A32 -> F | B41: =B17/100*B17/100 -> 0.6724 | C41: =B17/100*C17/100 -> 0.082 | D41: =B17/100*D17/100 -> 0.0656 | H41: =SUM(B41:F41) -> 0.82
A42: =A33 -> E | B42: =B17/100*C17/100 -> 0.082 | C42: =C17/100*C17/100 -> 0.01 | D42: =C17/100*D17/100 -> 0.008 | H42: =SUM(B42:F42) -> 0.1
A43: B | B43: =B17/100*D17/100 -> 0.0656 | C43: =C17/100*D17/100 -> 0.008 | D43: =D17/100*D17/100 -> 0.0064 | H43: =SUM(B43:F43) -> 0.08
H44: =SUM(B44:F44) -> 0
H45: =SUM(B45:F45) -> 0
H46: =SUM(H41:H45) -> 1
A47: Buffer Matrix (Bij)
C48: Trailing Aircraft (Header Columns)
A49: Lead (column 1) | B49: =B40 -> F | C49: =C40 -> E | D49: B | H49: Expected Value
A50: =B49 -> F | B50: =$F$13*$F$11 -> 33 | C50: =$F$13*$F$11 -> 33 | D50: =$F$13*$F$11 -> 33 | H50: B(Tij)
A51: =C49 -> E | B51: =MAX(0,($F$13*$F$11)-(B24*(1/B$18-1/C$18)*3600)) -> 30.01393497 | C51: =$F$13*$F$11 -> 33 | D51: =$F$13*$F$11 -> 33 | H51: =B41*B50+C50*C41+D41*D50+E41*E50+B42*B51+C42*C51+D42*D51+E42*E51+B43*B52+C43*C52+D43*D52+E43*E52+B44*B53+C44*C53+D44*D53+E44*E53+(F41*F50)+(F42*F51)+(F43*F52)+(F44*F53)+(B45*B54)+(C45*C54)+(D45*D54)+(E45*E54)+(F45*F54) -> 31.53210317
A52: =D49 -> B | B52: =MAX(0,$F$13*$F$11-B25*(1/B$18-1/D$18)*3600) -> 15.84166165 | C52: =MAX(0,$F$13*$F$11-C25*(1/C$18-1/D$18)*3600) -> 20.8184367 | D52: =$F$13*$F$11 -> 33
A56: Augmented Matrix (Tij + Bij)
C57: Trailing Aircraft (Header Columns)
A58: Lead (column 1) | B58: =B49 -> F | C58: =C49 -> E | D58: B | H58: Expected Value
A59: =B58 -> F | B59: =B50+B32 -> 114.8181818 | C59: 111.8321168 | D59: 104.5231788 | H59: E(Tij) + B(Tij)
A60: =C58 -> E | B60: 123.7763769 | C60: 111.8321168 | D60: 104.5231788 | H60: =B59*B41+C59*C41+D59*D41+E59*E41+B60*B42+C60*C42+D60*D42+E60*E42+B61*B43+C61*C43+D61*D43+E61*E43+B62*B44+C62*C44+D62*D44+E62*E44+B45*B63+C45*C63+D45*D63+E45*E63+F41*F59+F42*F60+F43*F61+F44*F62+F45*F63 -> 120.1414221
A61: =D58 -> B | B61: 193.3853101 | C61: 181.4410499 | D61: 104.5231788
A65: Arrivals Only Capacity (per hour) | D65: =3600/H60 -> 29.96468608
A68: Departure-Departure Separation Matrix (seconds)
C69: Trailing Aircraft (Header Columns)
A70: Lead (column 1) | B70: =B58 -> F | C70: =C58 -> E | D70: B | H70: Expected Value
A71: =B70 -> F | B71: 60 | C71: 60 | D71: 60 | H71: E(Td)
A72: =C70 -> E | B72: 60 | C72: 60 | D72: 60
A73: =D70 -> B | B73: 120 | C73: 120 | D73: 120 | H73: =B71*B41+C71*C41+D71*D41+E71*E41+B72*B42+C72*C42+D72*D42+E72*E42+B73*B43+C73*C43+D73*D43+E73*E43+B74*B44+C74*C44+D74*D44+E74*E44+B45*B75+C45*C75+D45*D75+E45*E75+F41*F71+F42*F72+F43*F73+F44*F74+F45*F75 -> 64.8
A77: Departures Only Capacity (per hour) without buffers | D77: =3600/H73 -> 55.55555556
A79: Departure-Departure Separation Matrix with Buffers (seconds)
C80: Trailing Aircraft (Header Columns)
A81: Lead (column 1) | B81: =B70 -> F | C81: =C70 -> E | D81: B | H81: Expected Value
A82: =B81 -> F | B82: =B71+$F$14 -> 70 | C82: =C71+$F$14 -> 70 | D82: 70 | H82: E(Td)
A83: =C81 -> E | B83: =B72+$F$14 -> 70 | C83: 70 | D83: 70
A84: =D81 -> B | B84: 130 | C84: 130 | D84: 130 | H84: =B82*B41+C82*C41+D82*D41+E82*E41+F82*F41+B83*B42+C83*C42+D83*D42+E83*E42+F83*F42+B84*B43+C84*C43+D84*D43+E84*E43+F84*F43+B85*B44+C85*C44+D85*D44+E85*E44+F85*F44+B45*B86+C45*C86+D45*D86+E45*E86+F45*F86 -> 74.8
A88: Departures Only Capacity (per hour) - includes departure buffers | D88: =3600/H84 -> 48.12834225
A91: Estimation of Critical Departure Gaps
E92: E(ROT) | F92: =H16 -> 52.42
A93: Departures | C93: Gap (EDTij) | E93: E(d/Vj) | F93: =($F$9/B$18*B17/100+$F$9/C$18*C17/100+F$9/D$18*D17/100+F$9/E$18*E17/100+F$9/F$18*F17/100)*3600 -> 53.79731672
A94: 1 | C94: =$F$92+$F$93+$F$94+(A94-1)*$H$73 -> 116.2173167 | F94: =H13 -> 10
A95: 2 | C95: =$F$92+$F$93+$F$94+(A95-1)*$H$73 -> 181.0173167
A96: 3 | C96: =$F$92+$F$93+$F$94+(A96-1)*$H$73 -> 245.8173167
A97: 4 | C97: =$F$92+$F$93+$F$94+(A97-1)*$H$73 -> 310.6173167
A98: 5 | C98: =$F$92+$F$93+$F$94+(A98-1)*$H$73 -> 375.4173167
A101: Departures per Gap
C102: Trailing Aircraft (Header Columns)
A103: Lead (column 1) | B103: =B81 -> F | C103: =C81 -> E | D103: B
A104: =B103 -> F | B104: =no_of_departures(B59,$C$94,$C$95,$C$96,$C$97) -> 0 | C104: 0 | D104: 0 | E104: 0 | F104: 0
A105: =C103 -> E | B105: 1 | C105: 0 | D105: 0 | E105: 0 | F105: 0
A106: =D103 -> B | B106: 2 | C106: 2 | D106: 0 | E106: 0 | F106: 0
B107: 0 | C107: 0 | D107: 0 | E107: 0 | F107: 0
B108: 0 | C108: 0 | D108: 0 | E108: 0 | F108: 0
A110: Departures per hour with 100% Arrival Priority
C112: Trailing Aircraft (Header Columns)
A113: Lead (column 1) | B113: =B103 -> F | C113: =C103 -> E | D113: B | G113: Sum
A114: =B113 -> F | B114: =B104*($D$65-1)*B41 -> 0 | C114: 0 | D114: 0 | E114: 0 | F114: 0 | G114: =B114+C114+D114+E114+F114 -> 0
A115: =C113 -> E | B115: 2.375104259 | C115: 0 | D115: 0 | E115: 0 | F115: 0 | G115: =B115+C115+D115+E115+F115 -> 2.375104259
A116: =D113 -> B | B116: 3.800166814 | C116: 0.4634349773 | D116: 0 | E116: 0 | F116: 0 | G116: =B116+C116+D116+E116+F116 -> 4.263601791
B117: 0 | C117: 0 | D117: 0 | E117: 0 | F117: 0 | G117: =B117+C117+D117+E117+F117 -> 0
B118: 0 | C118: 0 | D118: 0 | E118: 0 | F118: 0 | G118: =B118+C118+D118+E118+F118 -> 0
G119: =SUM(G114:G118) -> 6.63870605 | H119: Total Departures
A120: Summary for Arrival - Departure Diagram | H120: with 100% arrival priority
A122: Arrivals | B122: Departures | D122: Operation Pattern
A123: =D65 -> 29.96468608 | B123: 0 | D123: Arrivals Only | G123: Baseline
A124: =A123 -> 29.96468608 | B124: =G119 -> 6.63870605 | D124: 100% Arrivals + Departures | G124: Baseline
A125: ='Comp 2'!D65 -> 22.84359099 | B125: ='Comp 2'!G119 -> 24.88421885 | G125: Comp 2
A126: 0 | B126: =D88 -> 48.12834225 | D126: Departures Only | G126: Baseline
A164: 45 | B164: 0
A165: 45 | B165: 4.84
A166: 45 | B166: 20.1289
A167: 45 | B167: 58.31045458
A168: 0 | B168: 58.31

Sheet Program Description
A1: Simple Runway Saturation Capacity Program
A3: Implements the analyical procedure developed
A4: by W. Harris (at the MITRE Corporation)
A5: to estimate a single runway saturation capacity.
A7: This analytical procedure does not compute
A8: runway delay so another suitable method should be employed to
A9: estimate delay. A complementary approach to estimate
A10: delay would be to use queueing theory (see course notes).
A12: NOTE: This program only computes the saturation
A13: capacity for one runway. If multiple runways exist
A14: you can use a variation of the method to estimate
A15: the saturation capacity of the entire airport as follows:
A17: a) If runways are independent (check mimimum separation
A18: criteria) then the saturation capacity is just a multiple of the single runway capacity
A20: b) If runway operations are dependent (check separation criteria)
A21: then select a primary runway and estimate the capacity of this facility.
A22: Then select each remaining runway and iteratively create a feasible
A23: operations diagram so that time gaps left empty in the first runway
A24: are used by aircraft operating from other runways. This process
A25: requires some thinking and perhaps some local knowledge of how
A26: the airport is operated. Consult the ATC facility to get this information.

Sheet Comp 2
A1: Runway Saturation Capacity Estimation
A2: Using the Analyical Model for Runway Capacity
A4: Programmer: A. Trani (August 2019)
A5: Amendments: | B5: 1
A8: Technical Parameters (inputs) | E8: Parameter | F8: Values
A9: Dep-Arrival Separation (nm) | E9: d | F9: 2
A10: Common Approach Length (nm) | E10: g | F10: 12
A11: Standard deviation of Position Delivery Error (s) | E11: s | F11: 20
A12: Probability of Violation | E12: Pv | F12: 5 | H12: Clear to roll
A13: Cumulative Normal at Pv | E13: qv | F13: =qv_computation(F12) -> 1.65 | H13: 10
A14: Buffer for departure-departure (seconds) | F14: 10
B15: F | C15: E | D15: B
A16: ROT (s) | B16: 51 | C16: 54 | D16: 65 | E16: 70 | F16: 70 | H16: =B16*B17/100+C16*C17/100+D16*D17/100+E16*E17/100+F16*F17/100 -> 52.42 | I16: E(ROT)
A17: Percent Mix (%) | B17: 82 | C17: 10 | D17: 8 | E17: 0 | F17: 0 | H17: =B17+C17+D17+E17+F17 -> 100 | I17: Total %
A18: Vapproach (knots) | B18: 132 | C18: 137 | D18: 151 | E18: 150 | F18: 150
A20: Minimum Separation Matrix (nm) | D20: Arrivals-Arrivals | H20: Multiplier
C21: Trailing Aircraft (Header Columns) | H21: 1.45
A22: Lead (column 1) | B22: F | C22: E | D22: B
A23: =B22 -> F | B23: ='Computations Base'!B23*'Comp 2'!$H$21 -> 4.35 | C23: ='Computations Base'!C23*'Comp 2'!$H$21 -> 4.35 | D23: ='Computations Base'!D23*'Comp 2'!$H$21 -> 4.35 | E23: ='Computations Base'!E23*'Comp 2'!$H$21 -> 0 | F23: ='Computations Base'!F23*'Comp 2'!$H$21 -> 0
A24: =C22 -> E | B24: ='Computations Base'!B24*'Comp 2'!$H$21 -> 4.35 | C24: ='Computations Base'!C24*'Comp 2'!$H$21 -> 4.35 | D24: ='Computations Base'!D24*'Comp 2'!$H$21 -> 4.35 | E24: ='Computations Base'!E24*'Comp 2'!$H$21 -> 0 | F24: ='Computations Base'!F24*'Comp 2'!$H$21 -> 0
A25: =D22 -> B | B25: ='Computations Base'!B25*'Comp 2'!$H$21 -> 7.25 | C25: ='Computations Base'!C25*'Comp 2'!$H$21 -> 7.25 | D25: ='Computations Base'!D25*'Comp 2'!$H$21 -> 4.35 | E25: ='Computations Base'!E25*'Comp 2'!$H$21 -> 0 | F25: ='Computations Base'!F25*'Comp 2'!$H$21 -> 0
B26: ='Computations Base'!B26*'Comp 2'!$H$21 -> 0 | C26: ='Computations Base'!C26*'Comp 2'!$H$21 -> 0 | D26: ='Computations Base'!D26*'Comp 2'!$H$21 -> 0 | E26: ='Computations Base'!E26*'Comp 2'!$H$21 -> 0 | F26: ='Computations Base'!F26*'Comp 2'!$H$21 -> 0
B27: ='Computations Base'!B27*'Comp 2'!$H$21 -> 0 | C27: ='Computations Base'!C27*'Comp 2'!$H$21 -> 0 | D27: ='Computations Base'!D27*'Comp 2'!$H$21 -> 0 | E27: ='Computations Base'!E27*'Comp 2'!$H$21 -> 0 | F27: ='Computations Base'!F27*'Comp 2'!$H$21 -> 0
A29: Error Free Separation Matrix
C30: Trailing Aircraft (Header Columns)
A31: Lead (column 1) | B31: =B22 -> F | C31: =C22 -> E | D31: B | H31: Expected Value
A32: =A23 -> F | B32: =B23/B$18*3600 -> 118.6363636 | C32: =C23/C$18*3600 -> 114.3065693 | D32: =D23/D$18*3600 -> 103.7086093 | H32: E(Tij)
A33: =A24 -> E | B33: =(B24/B$18+$F$10*(1/B$18-1/C$18))*3600 -> 130.5806238 | C33: =C24/C$18*3600 -> 114.3065693 | D33: =D24/D$18*3600 -> 103.7086093 | H33: =B32*B41+C32*C41+D32*D41+E32*E41+B33*B42+C33*C42+D33*D42+E33*E42+B34*B43+C34*C43+D34*D43+E34*E43+B35*B44+C35*C44+D35*D44+E35*E44+F32*F41+F33*F42+F34*F43+F35*F44+B36*B45+C36*C45+D36*D45+E36*E45+F36*F45 -> 126.7218867
A34: B | B34: =(B25/B$18+$F$10*(1/B$18-1/D$18))*3600 -> 238.9072848 | C34: =(C25/C$18+$F$10*(1/C$18-1/D$18))*3600 -> 219.7467008 | D34: =D25/D$18*3600 -> 103.7086093
A38: Pij Matrix
C39: Trailing Aircraft (Header Columns)
A40: Lead (column 1) | B40: =B31 -> F | C40: =C31 -> E | D40: B | H40: Sum of Pij
A41: =A32 -> F | B41: =B17/100*B17/100 -> 0.6724 | C41: =B17/100*C17/100 -> 0.082 | D41: =B17/100*D17/100 -> 0.0656 | H41: =SUM(B41:F41) -> 0.82
A42: =A33 -> E | B42: =B17/100*C17/100 -> 0.082 | C42: =C17/100*C17/100 -> 0.01 | D42: =C17/100*D17/100 -> 0.008 | H42: =SUM(B42:F42) -> 0.1
A43: B | B43: =B17/100*D17/100 -> 0.0656 | C43: =C17/100*D17/100 -> 0.008 | D43: =D17/100*D17/100 -> 0.0064 | H43: =SUM(B43:F43) -> 0.08
H44: =SUM(B44:F44) -> 0
H45: =SUM(B45:F45) -> 0
H46: =SUM(H41:H45) -> 1
A47: Buffer Matrix (Bij)
C48: Trailing Aircraft (Header Columns)
A49: Lead (column 1) | B49: =B40 -> F | C49: =C40 -> E | D49: B | H49: Expected Value
A50: =B49 -> F | B50: =$F$13*$F$11 -> 33 | C50: =$F$13*$F$11 -> 33 | D50: =$F$13*$F$11 -> 33 | H50: B(Tij)
A51: =C49 -> E | B51: =MAX(0,($F$13*$F$11)-(B24*(1/B$18-1/C$18)*3600)) -> 28.67020571 | C51: =$F$13*$F$11 -> 33 | D51: =$F$13*$F$11 -> 33 | H51: =B41*B50+C50*C41+D41*D50+E41*E50+B42*B51+C42*C51+D42*D51+E42*E51+B43*B52+C43*C52+D43*D52+E43*E52+B44*B53+C44*C53+D44*D53+E44*E53+(F41*F50)+(F42*F51)+(F43*F52)+(F44*F53)+(B45*B54)+(C45*C54)+(D45*D54)+(E45*E54)+(F45*F54) -> 30.87154959
A52: =D49 -> B | B52: =MAX(0,$F$13*$F$11-B25*(1/B$18-1/D$18)*3600) -> 8.120409392 | C52: =MAX(0,$F$13*$F$11-C25*(1/C$18-1/D$18)*3600) -> 15.33673321 | D52: =$F$13*$F$11 -> 33
A56: Augmented Matrix (Tij + Bij)
C57: Trailing Aircraft (Header Columns)
A58: Lead (column 1) | B58: =B49 -> F | C58: =C49 -> E | D58: B | H58: Expected Value
A59: =B58 -> F | B59: =B50+B32 -> 151.6363636 | C59: 147.3065693 | D59: 136.7086093 | H59: E(Tij) + B(Tij)
A60: =C58 -> E | B60: 159.2508295 | C60: 147.3065693 | D60: 136.7086093 | H60: =B59*B41+C59*C41+D59*D41+E59*E41+B60*B42+C60*C42+D60*D42+E60*E42+B61*B43+C61*C43+D61*D43+E61*E43+B62*B44+C62*C44+D62*D44+E62*E44+B45*B63+C45*C63+D45*D63+E45*E63+F41*F59+F42*F60+F43*F61+F44*F62+F45*F63 -> 157.5934363
A61: =D58 -> B | B61: 247.0276942 | C61: 235.083434 | D61: 136.7086093
A65: Arrivals Only Capacity (per hour) | D65: =3600/H60 -> 22.84359099
A68: Departure-Departure Separation Matrix (seconds)
C69: Trailing Aircraft (Header Columns) | L69: Trailing
A70: Lead (column 1) | B70: =B58 -> F | C70: =C58 -> E | D70: B | H70: Expected Value | K70: Small | L70: Large | M70: B757 | N70: Heavy | O70: S-Heavy | P70: Expected Value
A71: =B70 -> F | B71: 60 | C71: 60 | D71: 60 | H71: E(Td) | K71: 10 | L71: 10 | M71: 10 | N71: 10 | O71: 10 | P71: E(Td)
A72: =C70 -> E | B72: 60 | C72: 60 | D72: 60 | K72: 10 | L72: 10 | M72: 10 | N72: 10 | O72: 10
A73: =D70 -> B | B73: 120 | C73: 120 | D73: 120 | H73: =B71*B41+C71*C41+D71*D41+E71*E41+B72*B42+C72*C42+D72*D42+E72*E42+B73*B43+C73*C43+D73*D43+E73*E43+B74*B44+C74*C44+D74*D44+E74*E44+B45*B75+C45*C75+D45*D75+E45*E75+F41*F71+F42*F72+F43*F73+F44*F74+F45*F75 -> 64.8 | K73: 10 | L73: 10 | M73: 10 | N73: 10 | O73: 10 | P73: =K71*I41+L71*J41+M71*K41+N71*L41+K72*I42+L72*J42+M72*K42+N72*L42+K73*I43+L73*J43+M73*K43+N73*L43+K74*I44+L74*J44+M74*K44+N74*L44 -> 0
K74: 10 | L74: 10 | M74: 10 | N74: 10 | O74: 10
K75: 10 | L75: 10 | M75: 10 | N75: 10 | O75: 10
A77: Departures Only Capacity (per hour) without buffers | D77: =3600/H73 -> 55.55555556
A79: Departure-Departure Separation Matrix with Buffers (seconds)
C80: Trailing Aircraft (Header Columns)
A81: Lead (column 1) | B81: =B70 -> F | C81: =C70 -> E | D81: B | H81: Expected Value
A82: =B81 -> F | B82: =B71+$F$14 -> 70 | C82: =C71+$F$14 -> 70 | D82: 70 | H82: E(Td)
A83: =C81 -> E | B83: =B72+$F$14 -> 70 | C83: 70 | D83: 70
A84: =D81 -> B | B84: 130 | C84: 130 | D84: 130 | H84: =B82*B41+C82*C41+D82*D41+E82*E41+F82*F41+B83*B42+C83*B42+D83*D42+E83*E42+F83*F42+B84*B43+C84*C43+D84*D43+E84*E43+F84*F43+B85*B44+C85*C44+D85*D44+E85*E44+F85*F44+B45*B86+C45*C86+D45*D86+E45*E86+F45*F86 -> 79.84
A88: Departures Only Capacity (per hour) - includes departure buffers | D88: =3600/H84 -> 45.09018036
A91: Estimation of Critical Departure Gaps
E92: E(ROT) | F92: =H16 -> 52.42
A93: Departures | C93: Gap (EDTij) | E93: E(d/Vj) | F93: =($F$9/B$18*B17/100+$F$9/C$18*C17/100+F$9/D$18*D17/100+F$9/E$18*E17/100+F$9/F$18*F17/100)*3600 -> 53.79731672
A94: 1 | C94: =$F$92+$F$93+$F$94+(A94-1)*$H$73 -> 116.2173167 | F94: =H13 -> 10
A95: 2 | C95: =$F$92+$F$93+$F$94+(A95-1)*$H$73 -> 181.0173167
A96: 3 | C96: =$F$92+$F$93+$F$94+(A96-1)*$H$73 -> 245.8173167
A97: 4 | C97: =$F$92+$F$93+$F$94+(A97-1)*$H$73 -> 310.6173167
A98: 5 | C98: =$F$92+$F$93+$F$94+(A98-1)*$H$73 -> 375.4173167
A101: Departures per Gap
C102: Trailing Aircraft (Header Columns)
A103: Lead (column 1) | B103: =B81 -> F | C103: =C81 -> E | D103: B
A104: =B103 -> F | B104: =no_of_departures(B59,$C$94,$C$95,$C$96,$C$97) -> 1 | C104: 1 | D104: 1 | E104: 0 | F104: 0
A105: =C103 -> E | B105: 1 | C105: 1 | D105: 1 | E105: 0 | F105: 0
A106: =D103 -> B | B106: 3 | C106: 2 | D106: 1 | E106: 0 | F106: 0
B107: 0 | C107: 0 | D107: 0 | E107: 0 | F107: 0
B108: 0 | C108: 0 | D108: 0 | E108: 0 | F108: 0
A110: Departures per hour with 100% Arrival Priority
C112: Trailing Aircraft (Header Columns)
A113: Lead (column 1) | B113: =B103 -> F | C113: =C103 -> E | D113: B | G113: Sum
A114: =B113 -> F | B114: =B104*($D$65-1)*B41 -> 14.68763058 | C114: 1.791174461 | D114: 1.432939569 | E114: 0 | F114: 0 | G114: =B114+C114+D114+E114+F114 -> 17.91174461
A115: =C113 -> E | B115: 1.791174461 | C115: 0.2184359099 | D115: 0.1747487279 | E115: 0 | F115: 0 | G115: =B115+C115+D115+E115+F115 -> 2.184359099
A116: =D113 -> B | B116: 4.298818706 | C116: 0.3494974558 | D116: 0.1397989823 | E116: 0 | F116: 0 | G116: =B116+C116+D116+E116+F116 -> 4.788115144
B117: 0 | C117: 0 | D117: 0 | E117: 0 | F117: 0 | G117: =B117+C117+D117+E117+F117 -> 0
B118: 0 | C118: 0 | D118: 0 | E118: 0 | F118: 0 | G118: =B118+C118+D118+E118+F118 -> 0
G119: =SUM(G114:G118) -> 24.88421885 | H119: Total Departures
A120: Summary for Arrival - Departure Diagram | H120: with 100% arrival priority
